fUST/lending_fUST_20250309
["ID","MTS","AMOUNT","RATE_DAILY","PERIOD"]
[355671996,1741451442803,-500.0,0.00047673,10]
[355671998,1741451442813,-500.0,0.00047673,10]
[355672000,1741451442822,-152.53,0.000477,42]
[355672002,1741451442832,-152.53,0.000477,42]
[355672003,1741451442841,-152.53,0.000477,42]
[355672006,1741451442851,-152.53,0.000477,42]
[355672008,1741451442860,-152.53,0.000477,42]
[355672010,1741451442870,-277.7634941,0.00047791,4]
[355672012,1741451442879,-164.1019145,0.00047834,4]
[355672014,1741451442888,-177.091352,0.00047844,120]
[355672015,1741451442898,-55555.0,0.00047844,120]
[355672017,1741451442907,-470.0,0.00047849,6]
[355672019,1741451442917,-180.07437562,0.00047863,120]
[355672021,1741451442927,-164.1019145,0.00047935,4]
[355672023,1741451442936,-500.0,0.00047944,120]
[355672025,1741451442945,-500.0,0.00047944,120]
[355672028,1741451442955,-500.0,0.00047945,120]
[355672030,1741451442965,-554.50851263,0.00047945,120]
[355672032,1741451442974,-500.0,0.00047945,120]
[355672034,1741451442983,-500.0,0.00047945,120]
[355672035,1741451442993,-500.0,0.00047945,120]
[355672037,1741451443002,-500.0,0.00047945,120]
[355672040,1741451443011,-500.97,0.00047945,120]
[355672041,1741451443021,-526.70252149,0.00047945,120]
[355672043,1741451443030,-500.0,0.00047945,120]
[355672045,1741451443040,-500.0,0.00047945,120]
[355672047,1741451443049,-528.89,0.00047945,120]
[355672049,1741451443058,-151.0,0.00047945,120]
[355672051,1741451443067,-1102.06,0.00047945,120]
[355672053,1741451443077,-500.0,0.00047945,120]
[355672055,1741451443086,-500.0,0.00047945,120]
[355672057,1741451443096,-500.0,0.00047945,120]
[355672059,1741451443106,-151.0,0.00047945,120]
[355672062,1741451443115,-500.0,0.00047945,120]
[355672063,1741451443125,-151.0,0.00047945,120]
[355672065,1741451443134,-151.0,0.00047945,120]
[355672067,1741451443144,-2067.1,0.00047945,120]
[355672070,1741451443154,-154.260043,0.00047945,120]
[355672074,1741451443165,-151.0,0.00047945,120]
[355672076,1741451443175,-500.0,0.00047945,120]
[355672080,1741451443184,-500.0,0.00047945,120]
[355672084,1741451443194,-500.0,0.00047945,120]
[355672086,1741451443203,-151.0,0.00047945,120]
[355672087,1741451443213,-151.0,0.00047945,120]
[355672089,1741451443222,-2681.45,0.00047945,2]
[355672091,1741451443232,-586.88,0.00047945,120]
[355672093,1741451443241,-500.0,0.00047945,120]
[355672095,1741451443251,-500.0,0.00047945,120]
[355672097,1741451443260,-517.36,0.00047945,120]
[355672099,1741451443270,-500.0,0.00047945,120]
[355672101,1741451443279,-547.04,0.00047945,120]
[355672103,1741451443289,-500.0,0.00047945,120]
[355672105,1741451443298,-500.0,0.00047945,120]
[355672107,1741451443308,-3568.64,0.00047945,120]
[355672109,1741451443317,-151.0,0.00047945,120]
[355672111,1741451443326,-400.901324,0.00047945,120]
[355672113,1741451443335,-151.0,0.00047945,120]
[355672115,1741451443345,-500.0,0.00047945,120]
[355672117,1741451443354,-500.0,0.00047945,120]
[355672119,1741451443363,-8885.22,0.00047945,7]
[355672121,1741451443374,-9188.01,0.00047945,120]
[355672123,1741451443382,-2637.8,0.00047945,120]
[355672125,1741451443392,-500.0,0.00047945,120]
[355672127,1741451443401,-500.0,0.00047945,120]
[355672129,1741451443411,-696.54,0.00047945,120]
[355672131,1741451443420,-559.089784,0.00047945,120]
[355672133,1741451443429,-3766.75,0.00047945,120]
[355672135,1741451443438,-559.089784,0.00047945,120]
[355672137,1741451443448,-1421.86,0.00047945,120]
[355672139,1741451443457,-500.0,0.00047945,120]
[355672141,1741451443466,-757.63,0.00047945,120]
[355672143,1741451443476,-769.52,0.00047945,120]
[355672145,1741451443486,-500.0,0.00047945,120]
[355672147,1741451443495,-151.0,0.00047945,120]
[355672149,1741451443503,-532.11,0.00047945,120]
[355672151,1741451443512,-533.37,0.00047945,2]
[355672153,1741451443521,-500.0,0.00047945,120]
[355672155,1741451443531,-1000.0,0.00048,30]
[355672157,1741451443541,-811.50112087,0.00048,15]
[355672159,1741451443550,-500.0,0.00048077,10]
[355672161,1741451443560,-500.0,0.00048077,10]
[355672163,1741451443569,-502.63650637,0.00048077,10]
[355672165,1741451443578,-500.0,0.00048077,2]
[355672167,1741451443587,-500.0,0.00048077,10]
[355672169,1741451443597,-500.0,0.00048077,10]
[355672171,1741451443606,-500.0,0.00048077,10]
[355672173,1741451443615,-500.0,0.00048077,10]
[355672174,1741451443624,-500.0,0.00048077,10]
[355672176,1741451443634,-269.71745999,0.00048077,10]
[355672178,1741451443643,-500.0,0.00048077,10]
[355672180,1741451443653,-250.89217317,0.00048077,10]
[355672182,1741451443665,-500.0,0.00048077,10]
[355672184,1741451443676,-500.0,0.00048077,2]
[355672186,1741451443685,-478.2979507,0.00048077,10]
[355672189,1741451443695,-164.1019145,0.0004819,4]
[355672190,1741451443705,-151.0,0.00048197,120]
[355672192,1741451443715,-151.0,0.00048197,120]
[355672195,1741451443724,-200.0,0.00048197,2]
[355672197,1741451443733,-151.0,0.00048197,90]
[355672198,1741451443745,-2450.0,0.00048197,4]
[355672200,1741451443754,-156.233894,0.00048198,120]
[355672202,1741451443764,-154.748819,0.00048198,120]
[355672204,1741451443773,-151.0,0.00048198,120]
[355672206,1741451443783,-1396.284267,0.00048198,120]
[355672208,1741451443792,-157.845587,0.00048198,120]
[355672210,1741451443801,-301.574118,0.00048198,90]
[355672212,1741451443811,-151.0,0.00048198,120]
[355672214,1741451443820,-155.146904,0.00048198,120]
[355672216,1741451443829,-1222.72,0.000482,30]
[355672218,1741451443839,-1549.1,0.000482,30]
[355672220,1741451443848,-151.0,0.000482,120]
[355672222,1741451443858,-151.849708,0.000482,120]
[355672224,1741451443868,-164.1019145,0.00048209,4]
[355672226,1741451443877,-500.0,0.00048218,120]
[355672228,1741451443887,-500.0,0.00048218,120]
[355672230,1741451443896,-151.0,0.00048218,120]
[355672232,1741451443905,-155.118598,0.00048218,120]
[355672234,1741451443915,-155.118598,0.00048218,120]
[355672236,1741451443924,-291.148032,0.00048218,120]
[355672238,1741451443933,-192.9,0.00048218,30]
[355672240,1741451443945,-151.0,0.00048218,120]
[355672242,1741451443954,-151.0,0.00048219,120]
[355672244,1741451443963,-500.0,0.00048219,120]
[355672246,1741451443973,-154.02273,0.00048219,120]
[355672248,1741451443982,-500.0,0.00048219,120]
[355672250,1741451443992,-500.0,0.00048219,120]
[355672252,1741451444002,-500.0,0.00048219,120]
[355672254,1741451444011,-500.0,0.00048219,120]
[355672256,1741451444020,-151.0,0.00048219,120]
[355672258,1741451444029,-500.97,0.00048219,120]
[355672260,1741451444039,-500.0,0.00048219,120]
[355672262,1741451444048,-500.0,0.00048219,120]
[355672264,1741451444057,-528.89,0.00048219,120]
[355672266,1741451444066,-151.0,0.00048219,120]
[355672268,1741451444075,-1102.06,0.00048219,120]
[355672270,1741451444086,-500.0,0.00048219,120]
[355672272,1741451444096,-500.0,0.00048219,120]
[355672274,1741451444105,-500.0,0.00048219,120]
[355672276,1741451444114,-151.0,0.00048219,120]
[355672278,1741451444124,-500.0,0.00048219,120]
[355672280,1741451444133,-151.0,0.00048219,120]
[355672282,1741451444143,-151.0,0.00048219,120]
[355672284,1741451444151,-2067.1,0.00048219,120]
[355672286,1741451444161,-500.0,0.00048219,120]
[355672288,1741451444171,-500.0,0.00048219,120]
[355672290,1741451444180,-500.0,0.00048219,120]
[355672300,1741451444262,-151.0,0.00048219,120]
[355672303,1741451444283,-2681.45,0.00048219,2]
[355672305,1741451444293,-586.88,0.00048219,120]
[355672306,1741451444303,-500.0,0.00048219,120]
[355672308,1741451444313,-500.0,0.00048219,120]
[355672310,1741451444322,-517.36,0.00048219,120]
[355672312,1741451444331,-500.0,0.00048219,120]
[355672314,1741451444341,-547.04,0.00048219,120]
[355672316,1741451444350,-500.0,0.00048219,120]
[355672318,1741451444359,-500.0,0.00048219,120]
[355672320,1741451444368,-3568.64,0.00048219,120]
[355672322,1741451444377,-151.0,0.00048219,120]
[355672324,1741451444388,-500.0,0.00048219,120]
[355672326,1741451444397,-500.0,0.00048219,120]
[355672328,1741451444406,-8885.22,0.00048219,7]
[355672330,1741451444417,-9188.01,0.00048219,120]
[355672332,1741451444426,-2637.8,0.00048219,120]
[355672334,1741451444435,-500.0,0.00048219,120]
[355672336,1741451444445,-500.0,0.00048219,120]
[355672338,1741451444454,-696.54,0.00048219,120]
[355672340,1741451444468,-559.089784,0.00048219,120]
[355672342,1741451444477,-3766.75,0.00048219,120]
[355672344,1741451444486,-559.089784,0.00048219,120]
[355672346,1741451444495,-1421.86,0.00048219,120]
[355672348,1741451444505,-500.0,0.00048219,120]
[355672350,1741451444514,-757.63,0.00048219,120]
[355672352,1741451444523,-769.52,0.00048219,120]
[355672354,1741451444532,-500.0,0.00048219,120]
[355672356,1741451444541,-532.11,0.00048219,120]
[355672358,1741451444551,-533.37,0.00048219,2]
[355672360,1741451444560,-500.0,0.00048219,120]
[355672362,1741451444569,-151.0,0.00048273,120]
[355672364,1741451444579,-400.901324,0.00048273,120]
[355672366,1741451444588,-200.348043,0.00048287,120]
[355672368,1741451444597,-1396.284267,0.00048287,120]
[355672370,1741451444607,-194.38866571,0.00048392,120]
[355672372,1741451444616,-352.0,0.00048438,30]
[355672374,1741451444626,-352.0,0.00048438,30]
[355672376,1741451444636,-352.0,0.00048438,30]
[355672378,1741451444645,-352.0,0.00048438,30]
[355672380,1741451444654,-352.0,0.00048438,30]
[355672382,1741451444665,-352.0,0.00048438,30]
[355672384,1741451444676,-352.0,0.00048438,30]
[355672385,1741451444686,-352.0,0.00048438,30]
[355672386,1741451444695,-352.0,0.00048438,30]
[355672387,1741451444705,-352.0,0.00048438,30]
[355672388,1741451444715,-352.0,0.00048438,30]
[355672389,1741451444724,-352.0,0.00048438,30]
[355672390,1741451444733,-352.0,0.00048438,30]
[355672391,1741451444744,-352.0,0.00048438,30]
[355672392,1741451444753,-316.0,0.00048438,30]
[355672393,1741451444763,-352.0,0.00048438,30]
[355672394,1741451444772,-316.0,0.00048438,30]
[355672395,1741451444781,-352.0,0.00048438,30]
[355672396,1741451444791,-316.0,0.00048438,30]
[355672397,1741451444800,-352.0,0.00048438,30]
[355672398,1741451444809,-321.46638058,0.00048438,30]
[355672399,1741451444819,-352.0,0.00048438,30]
[355672400,1741451444828,-352.0,0.00048438,30]
[355672401,1741451444839,-352.0,0.00048438,30]
[355672403,1741451444850,-352.0,0.00048438,30]
[355672404,1741451444862,-352.0,0.00048438,30]
[355672406,1741451444873,-491.03717399,0.00048438,30]
[355672408,1741451444883,-500.0,0.00048473,10]
[355672410,1741451444892,-164.1019145,0.00048483,4]
[355672412,1741451444901,-1224.78,0.0004849,120]
[355672414,1741451444910,-441.24832079,0.00048492,120]
[355672416,1741451444919,-151.0,0.00048492,120]
[355672418,1741451444929,-151.0,0.00048492,120]
[355672420,1741451444938,-1396.284267,0.00048493,120]
[355672422,1741451444947,-151.0,0.00048493,120]
[355672424,1741451444956,-593.11162817,0.00048493,120]
[355672426,1741451444966,-500.0,0.00048493,120]
[355672428,1741451444975,-500.0,0.00048493,120]
[355672430,1741451444985,-500.0,0.00048493,120]
[355672432,1741451444994,-151.0,0.00048493,120]
[355672434,1741451445003,-155.118598,0.00048493,120]
[355672436,1741451445013,-500.97,0.00048493,120]
[355672438,1741451445023,-155.118598,0.00048493,120]
[355672440,1741451445032,-585.77318557,0.00048493,120]
[355672442,1741451445041,-500.0,0.00048493,120]
[355672444,1741451445051,-151.0,0.00048493,120]
[355672446,1741451445060,-528.89,0.00048493,120]
[355672448,1741451445069,-1102.06,0.00048493,120]
[355672450,1741451445079,-500.0,0.00048493,120]
[355672452,1741451445088,-500.0,0.00048493,120]
[355672454,1741451445098,-500.0,0.00048493,120]
[355672456,1741451445107,-412.38597772,0.00048493,120]
[355672458,1741451445117,-2067.1,0.00048493,120]
[355672459,1741451445127,-500.0,0.00048493,120]
[355672461,1741451445137,-500.0,0.00048493,120]
[355672463,1741451445146,-500.0,0.00048493,120]
[355672465,1741451445156,-151.0,0.00048493,120]
[355672468,1741451445166,-2681.45,0.00048493,2]
[355672469,1741451445175,-586.88,0.00048493,120]
[355672471,1741451445185,-500.0,0.00048493,120]
[355672473,1741451445194,-500.0,0.00048493,120]
[355672475,1741451445204,-517.36,0.00048493,120]
[355672477,1741451445213,-500.0,0.00048493,120]
[355672479,1741451445223,-547.04,0.00048493,120]
[355672481,1741451445233,-405.23050881,0.00048493,120]
[355672483,1741451445242,-500.0,0.00048493,120]
[355672485,1741451445252,-3568.64,0.00048493,120]
[355672487,1741451445262,-500.0,0.00048493,120]
[355672489,1741451445271,-500.0,0.00048493,120]
[355672491,1741451445280,-8885.22,0.00048493,7]
[355672493,1741451445289,-9188.01,0.00048493,120]
[355672495,1741451445300,-2637.8,0.00048493,120]
[355672497,1741451445310,-500.0,0.00048493,120]
[355672499,1741451445319,-500.0,0.00048493,120]
[355672501,1741451445329,-696.54,0.00048493,120]
[355672503,1741451445338,-3766.75,0.00048493,120]
[355672505,1741451445347,-1421.86,0.00048493,120]
[355672507,1741451445356,-500.0,0.00048493,120]
[355672509,1741451445366,-757.63,0.00048493,120]
[355672511,1741451445375,-769.52,0.00048493,120]
[355672513,1741451445385,-500.0,0.00048493,120]
[355672515,1741451445394,-532.11,0.00048493,120]
[355672517,1741451445403,-533.37,0.00048493,2]
[355672519,1741451445412,-500.0,0.00048493,120]
[355672521,1741451445421,-157.05090957,0.00048495,2]
[355672523,1741451445430,-1158.29983718,0.00048525,120]
[355672524,1741451445440,-741.84601759,0.0004853,2]
[355672526,1741451445452,-6222.86993596,0.00048536,120]
[355672528,1741451445462,-6222.86993596,0.00048541,120]
[355672530,1741451445471,-710.327694,0.00048544,120]
[355672532,1741451445481,-710.327694,0.00048562,120]
[355672534,1741451445491,-1158.29983718,0.00048565,120]
[355672536,1741451445500,-6222.86993596,0.00048569,120]
[355672538,1741451445510,-710.327694,0.0004857,120]
[355672540,1741451445519,-710.327694,0.00048578,120]
[355672542,1741451445529,-6222.86993596,0.0004858,120]
[355672544,1741451445538,-1158.29983718,0.00048595,120]
[355672546,1741451445547,-1158.29983718,0.00048599,120]
[355672548,1741451445557,-14238.0,0.000487,30]
[355672550,1741451445567,-164.1019145,0.00048757,4]
[355672552,1741451445576,-266.275712,0.00048766,120]
[355672554,1741451445585,-255.818195,0.00048766,120]
[355672556,1741451445595,-151.0,0.00048766,120]
[355672558,1741451445604,-151.0,0.00048766,120]
[355672560,1741451445613,-151.0,0.00048766,120]
[355672562,1741451445625,-559.089784,0.00048766,120]
[355672564,1741451445634,-559.089784,0.00048766,120]
[355672566,1741451445644,-2014.0,0.00048767,120]
[355672568,1741451445654,-500.0,0.00048767,120]
[355672570,1741451445665,-500.0,0.00048767,120]
[355672572,1741451445676,-500.0,0.00048767,120]
[355672574,1741451445685,-151.0,0.00048767,120]
[355672576,1741451445694,-500.97,0.00048767,120]
[355672578,1741451445705,-606.09094382,0.00048767,120]
[355672580,1741451445714,-528.89,0.00048767,120]
[355672582,1741451445723,-1102.06,0.00048767,120]
[355672584,1741451445732,-500.0,0.00048767,120]
[355672586,1741451445742,-500.0,0.00048767,120]
[355672588,1741451445752,-500.0,0.00048767,120]
[355672590,1741451445761,-2067.1,0.00048767,120]
[355672592,1741451445770,-500.0,0.00048767,120]
[355672594,1741451445780,-500.0,0.00048767,120]
[355672596,1741451445789,-500.0,0.00048767,120]
[355672598,1741451445798,-151.0,0.00048767,120]
[355672600,1741451445808,-2681.45,0.00048767,2]
[355672602,1741451445817,-586.88,0.00048767,120]
[355672604,1741451445826,-500.0,0.00048767,120]
[355672606,1741451445835,-500.0,0.00048767,120]
[355672608,1741451445844,-517.36,0.00048767,120]
[355672610,1741451445854,-500.0,0.00048767,120]
[355672612,1741451445863,-547.04,0.00048767,120]
[355672614,1741451445875,-500.0,0.00048767,120]
[355672616,1741451445884,-3568.64,0.00048767,120]
[355672618,1741451445893,-296.388449,0.00048767,120]
[355672620,1741451445902,-400.901324,0.00048767,120]
[355672622,1741451445911,-151.0,0.00048767,120]
[355672624,1741451445920,-500.0,0.00048767,120]
[355672626,1741451445930,-500.0,0.00048767,120]
[355672628,1741451445939,-8885.22,0.00048767,7]
[355672630,1741451445948,-9188.01,0.00048767,120]
[355672632,1741451445957,-2637.8,0.00048767,120]
[355672634,1741451445967,-500.0,0.00048767,120]
[355672636,1741451445977,-500.0,0.00048767,120]
[355672638,1741451445986,-696.54,0.00048767,120]
[355672640,1741451445995,-3766.75,0.00048767,120]
[355672642,1741451446004,-1421.86,0.00048767,120]
[355672644,1741451446013,-500.0,0.00048767,120]
[355672646,1741451446022,-757.63,0.00048767,120]
[355672649,1741451446031,-769.52,0.00048767,120]
[355672650,1741451446040,-500.0,0.00048767,120]
[355672652,1741451446050,-151.0,0.00048767,120]
[355672654,1741451446060,-532.11,0.00048767,120]
[355672656,1741451446069,-533.37,0.00048767,2]
[355672658,1741451446079,-500.0,0.00048767,120]
[355672660,1741451446088,-151.0,0.00048835,120]
[355672662,1741451446098,-184.451089,0.00048835,120]
[355672664,1741451446108,-2000.0,0.00048835,120]
[355672666,1741451446119,-151.0,0.00048845,30]
[355672668,1741451446128,-1396.284267,0.00048845,120]
[355672670,1741451446138,-500.0,0.00048908,96]
[355672672,1741451446147,-1312.815316,0.0004897,4]
[355672674,1741451446156,-500.0,0.0004897,5]
[355672676,1741451446167,-150.0,0.00048973,10]
[355672678,1741451446176,-489327.17052317,0.0004898,30]
[355672680,1741451446186,-443.473,0.00048998,2]
[355672683,1741451446198,-2202.14344633,0.00049,42]
[355672685,1741451446208,-3199.5337336,0.00049,30]
[355672687,1741451446218,-850.0,0.00049,120]
[355672689,1741451446227,-382.61157457,0.00049,120]
[355672692,1741451446236,-151.0,0.00049,120]
[355672695,1741451446245,-3927.36132235,0.00049,120]
[355672714,1741451446412,-11787.80908295,0.00049,120]
[355672716,1741451446421,-2038.90074751,0.00049,120]
[355672718,1741451446432,-617.55481849,0.00049,120]
[355672720,1741451446442,-18321.24396055,0.00049,120]
[355672737,1741451446595,-772.79413623,0.00046575,120]
[355672740,1741451446606,-493.28256153,0.00046575,120]
[355672742,1741451446617,-506.06236576,0.00046575,120]
[355672768,1741451446865,-44.29093648,0.00046575,120]
[355672770,1741451446876,-349.6,0.00046838,10]
[355672772,1741451446885,-1767.1855326,0.00046849,120]
[355672791,1741451447055,-43.39505328,0.00046575,120]
[355674429,1741451516879,229.845747,0.00041189,2]
[355674430,1741451810639,3743.64981237,0.00029,10]
[355674436,1741452349116,-162.427802,0.0003589,2]
[355674437,1741452349137,-164.08940538,0.00041096,2]
[355674438,1741452349160,-162.427802,0.00041211,2]
[355674439,1741452349182,-232.74968986,0.000419,9]
[355674440,1741452404087,-206.90415627,0.00039089,2]
[355674442,1741452428084,-162.73108274,0.00039089,2]
[355674443,1741452431079,-294.09272185,0.00039089,2]
[355674444,1741452431101,-24.00568924,0.000419,9]
[355674445,1741452434075,-987.58080005,0.000419,9]
[355674446,1741452436101,-244.36684306,0.000419,9]
[355674447,1741452436124,-388.91224435,0.00041939,5]
[355674448,1741452438095,-161.08775565,0.00041939,5]
[355674449,1741452438118,-4531.65490611,0.0004194,2]
[355674450,1741452448091,-1187.28512242,0.0004194,2]
[355674452,1741452546078,-1479.72662371,0.000419,9]
[355674453,1741452546101,-189.90361167,0.0004194,2]
[355674454,1741452546124,-852.5464507,0.00042068,2]
[355674455,1741452546145,-481.2334249,0.00042143,2]
[355674456,1741452546167,-342.0303647,0.00042157,2]
[355674457,1741452546314,-3995.0966593,0.00042387,64]
[355674458,1741452546340,-200.0,0.000432,120]
[355674459,1741452546361,-268.16270648,0.00043562,120]
[355674460,1741452546383,-151.0,0.00044,120]
[355674463,1741452549135,-663.72796086,0.00044089,2]
[355674636,1741452637977,-173.0,0.00045,120]
[355674637,1741452637988,-517.83,0.00046146,9]
[355674638,1741452637998,-325.26509687,0.00046374,120]
[355674639,1741452638007,-1067.84412245,0.00046451,2]
[355674640,1741452638019,-4722.95380304,0.00046451,2]
[355674641,1741452638031,-5478.06138086,0.00046451,2]
[355674642,1741452638043,-4286.81469062,0.00046451,2]
[355674643,1741452638053,-200.65156379,0.00046474,2]
[355674644,1741452638065,-469.57116877,0.00046474,2]
[355674645,1741452638075,-4174.81834296,0.000465,120]
[355674646,1741452638085,-1571.04444243,0.000465,19]
[355674647,1741452638095,-224.21575907,0.00046521,2]
[355674648,1741452638105,-162.427802,0.00046532,2]
[355674649,1741452638115,-160.0,0.00046532,2]
[355674650,1741452638124,-250.0,0.0004654,120]
[355674651,1741452638134,-303.4,0.00046573,5]
[355674652,1741452638144,-250.0,0.00046574,120]
[355674653,1741452638154,-250.0,0.00046574,120]
[355674654,1741452638164,-250.0,0.00046574,120]
[355674655,1741452638173,-185.78,0.00046574,30]
[355674656,1741452638183,-500.0,0.00046574,2]
[355674657,1741452638194,-500.0,0.00046574,2]
[355674658,1741452638204,-500.0,0.00046574,2]
[355674659,1741452638214,-222.1780163,0.00046574,2]
[355674660,1741452638223,-500.0,0.00046575,2]
[355674661,1741452638233,-503.58559608,0.00046575,120]
[355674662,1741452638243,-500.0,0.00046575,120]
[355674663,1741452638253,-500.0,0.00046575,120]
[355674664,1741452638262,-500.0,0.00046575,120]
[355674665,1741452638271,-500.0,0.00046575,120]
[355674666,1741452638281,-237.94496825,0.00046575,120]
[355674667,1741452638291,-500.0,0.00046575,120]
[355674668,1741452638302,-500.0,0.00046575,120]
[355674669,1741452638311,-500.0,0.00046575,120]
[355674670,1741452638321,-500.0,0.00046575,120]
[355674671,1741452638332,-500.0,0.00046575,120]
[355674672,1741452638341,-500.0,0.00046575,120]
[355674673,1741452638351,-500.0,0.00046575,120]
[355674674,1741452638360,-500.0,0.00046575,120]
[355674675,1741452638369,-500.0,0.00046575,120]
[355674676,1741452638379,-519.48480496,0.00046575,120]
[355674677,1741452638388,-500.0,0.00046575,120]
[355674678,1741452638398,-500.0,0.00046575,120]
[355674679,1741452638408,-500.0,0.00046575,120]
[355674680,1741452638418,-784.8,0.00046575,120]
[355674681,1741452638428,-500.0,0.00046575,120]
[355674682,1741452638438,-500.0,0.00046575,120]
[355674683,1741452638447,-1507.28,0.00046575,120]
[355674684,1741452638457,-500.0,0.00046575,120]
[355674685,1741452638466,-505.08,0.00046575,120]
[355674686,1741452638476,-500.0,0.00046575,120]
[355674687,1741452638485,-500.0,0.00046575,120]
[355674688,1741452638495,-513.01,0.00046575,120]
[355674689,1741452638505,-500.0,0.00046575,120]
[355674690,1741452638515,-500.0,0.00046575,120]
[355674691,1741452638525,-456.60494672,0.00046575,120]
[355674692,1741452638535,-500.0,0.00046575,120]
[355674693,1741452638544,-2379.1,0.00046575,120]
[355674694,1741452638555,-500.0,0.00046575,120]
[355674695,1741452638564,-1740.96,0.00046575,120]
[355674696,1741452638573,-567.75414509,0.00046575,120]
[355674697,1741452638583,-500.0,0.00046575,120]
[355674698,1741452638593,-500.0,0.00046575,120]
[355674699,1741452638602,-500.0,0.00046575,120]
[355674700,1741452638611,-6125.34,0.00046575,120]
[355674701,1741452638621,-6966.93,0.00046575,7]
[355674702,1741452638631,-2638.28,0.00046575,120]
[355674703,1741452638640,-500.0,0.00046575,120]
[355674704,1741452638649,-500.0,0.00046575,120]
[355674705,1741452638659,-500.0,0.00046575,120]
[355674706,1741452638669,-1758.53,0.00046575,120]
[355674707,1741452638678,-947.91,0.00046575,120]
[355674708,1741452638688,-500.0,0.00046575,120]
[355674709,1741452638697,-500.0,0.00046575,120]
[355674710,1741452638707,-500.0,0.00046575,120]
[355674711,1741452638716,-500.0,0.00046575,120]
[355674712,1741452638726,-500.0,0.00046575,120]
[355674713,1741452638736,-500.0,0.00046575,120]
[355674714,1741452638746,-500.0,0.00046575,120]
[355674715,1741452638755,-1787.64,0.00046575,2]
[355674716,1741452638765,-500.0,0.00046575,120]
[355674717,1741452638774,-500.0,0.00046575,2]
[355674718,1741452638784,-500.0,0.00046575,120]
[355674719,1741452638793,-500.0,0.00046575,120]
[355674720,1741452638802,-500.0,0.00046575,120]
[355674721,1741452638812,-500.0,0.00046575,2]
[355674722,1741452638821,-390.44299273,0.00046575,120]
[355674723,1741452638830,-500.0,0.00046637,2]
[355674724,1741452638839,-500.0,0.00046637,10]
[355674725,1741452638849,-500.0,0.00046637,10]
[355674726,1741452638858,-170.0,0.000467,120]
[355674727,1741452638867,-500.0,0.00046709,10]
[355674728,1741452638876,-600.0,0.00046817,2]
[355674729,1741452638885,-210.98817578,0.00046835,4]
[355674730,1741452638895,-172.81,0.00046835,10]
[355674731,1741452638905,-269.82,0.00046835,10]
[355674732,1741452638915,-833.11,0.00046835,30]
[355674733,1741452638924,-224.85,0.00046835,10]
[355674734,1741452638934,-500.0,0.00046844,31]
[355674735,1741452638944,-500.0,0.00046844,31]
[355674736,1741452638953,-500.0,0.00046844,31]
[355674737,1741452638963,-500.0,0.00046844,31]
[355674738,1741452638972,-500.0,0.00046844,31]
[355674739,1741452638982,-500.0,0.00046844,31]
[355674740,1741452638991,-500.0,0.00046844,31]
[355674741,1741452639001,-462.05254281,0.00046844,31]
[355674742,1741452639011,-500.0,0.00046844,31]
[355674743,1741452639020,-500.0,0.00046844,31]
[355674744,1741452639030,-600.0,0.00046844,31]
[355674745,1741452639039,-132304.71454908,0.00046845,2]